[Event "Cellavision Cup 2019"]
[Site "Lund"]
[Date "2019.08.02"]
[Round "3.7"]
[White "Hector, Jonny"]
[Black "Brondt, Nicolai Kvist"]
[Result "1-0"]
[ECO "B18"]
[WhiteElo "2487"]
[BlackElo "2288"]
[Annotator "ChessBase"]
[PlyCount "67"]
[EventDate "2019.08.02"]
[EventType "swiss"]
[EventCountry "SWE"]
[SourceTitle "playchess.com"]
[Source "ChessBase"]
[SourceQuality "1"]
[TimeControl "900+5"]

1. e4 {[%emt 0:00:01]} c6 {[%emt 0:00:00]} 2. d4 {[%emt 0:00:02]} d5 {[%emt 0:00:00]} 3. Nd2 {[%emt 0:00:02]} dxe4 {[%emt 0:00:00]} 4. Nxe4 {[%emt 0:00:02]} Bf5 {[%emt 0:00:00]} 5. Ng3 {[%emt 0:00:02]} Bg6 {[%emt 0:00:01]} 6. Nh3 {[%emt 0:00:07]} e6 {[%emt 0:00:05]} 7. Nf4 {[%emt 0:00:03]} Bd6 {[%emt 0:00:13]} 8. h4 {[%emt 0:00:03]} Qc7 {[%emt 0:00:50]} 9. Nxg6 {[%emt 0:00:03]} hxg6 {[%emt 0:00:02]} 10. Ne4 {[%emt 0:00:03]} Bf4 {[%emt 0:00:30]} 11. Bxf4 {[%emt 0:00:04]} Qxf4 {[%emt 0:00:03]} 12. Ng5 {[%emt 0:00:03]} Nh6 {[%emt 0:01:18]} 13. g3 {[%emt 0:00:12]} Qd6 {[%emt 0:00:11]} 14. Qd2 {[%emt 0:00:08]} Nd7 {[%emt 0:00:18]} 15. Bh3 {[%emt 0:00:22]} O-O-O {[%emt 0:01:30]} 16. O-O-O {[%emt 0:00:11]} Kb8 {[%emt 0:00:38]} 17. Rhe1 {[%emt 0:00:13]} Rhe8 {[%emt 0:00:22]} 18. Kb1 {[%emt 0:00:23]} Qc7 {[%emt 0:02:38]} 19. Bxe6 {[%emt 0:01:03]} fxe6 {[%emt 0:00:02]} 20. Nxe6 {[%emt 0:00:02]} Rxe6 {[%emt 0:00:09]} 21. Rxe6 {[%emt 0:00:02]} Nf6 {[%emt 0:01:27]} 22. Qe2 {[%emt 0:00:16]} Nf5 {[%emt 0:01:11]} 23. c3 {[%emt 0:00:03]} c5 {[%emt 0:01:28]} 24. dxc5 {[%emt 0:00:49]} Rxd1+ {[%emt 0:00:30]} 25. Qxd1 {[%emt 0:00:03]} a6 {[%emt 0:00:14]} 26. b4 {[%emt 0:01:07]} Qd7 {[%emt 0:01:10]} 27. Qxd7 {[%emt 0:00:21]} Nxd7 {[%emt 0:00:02]} 28. Rxg6 {[%emt 0:00:36]} Kc7 {[%emt 0:00:59]} 29. Rg5 {[%emt 0:00:04]} Ne7 {[%emt 0:00:33]} 30. Rxg7 {[%emt 0:00:05]} Nd5 {[%emt 0:00:02]} 31. Kc2 {[%emt 0:00:06]} Kc6 {[%emt 0:00:02]} 32. h5 {[%emt 0:00:16]} a5 {[%emt 0:00:12]} 33. h6 {[%emt 0:00:09]} N7f6 {[%emt 0:00:05]} 34. h7 {[%emt 0:00:19]} 1-0

[Event "Cellavision Cup 2019"]
[Site "Lund"]
[Date "2019.08.02"]
[Round "3.8"]
[White "Petersson, Baldur Teodor"]
[Black "Cramling, Pia"]
[Result "1/2-1/2"]
[ECO "B30"]
[WhiteElo "2179"]
[BlackElo "2479"]
[Annotator "ChessBase"]
[PlyCount "123"]
[EventDate "2019.08.02"]
[EventType "swiss"]
[EventCountry "SWE"]
[SourceTitle "playchess.com"]
[Source "ChessBase"]
[SourceQuality "1"]
[TimeControl "900+5"]

1. e4 {[%emt 0:00:00]} c5 {[%emt 0:00:00]} 2. Nf3 {[%emt 0:00:00]} Nc6 {[%emt 0:00:10]} 3. d3 {[%emt 0:00:02]} g6 {[%emt 0:00:05]} 4. g3 {[%emt 0:00:02]} Bg7 {[%emt 0:00:00]} 5. Bg2 {[%emt 0:00:01]} d6 {[%emt 0:00:11]} 6. O-O {[%emt 0:00:05]} Rb8 {[%emt 0:00:06]} 7. c3 {[%emt 0:00:10]} e5 {[%emt 0:00:01]} 8. a3 {[%emt 0:00:05]} Nge7 {[%emt 0:00:22]} 9. Re1 {[%emt 0:00:36]} O-O {[%emt 0:00:03]} 10. b4 {[%emt 0:00:02]} h6 {[%emt 0:00:16]} 11. b5 {[%emt 0:03:37]} Na5 {[%emt 0:00:02]} 12. c4 {[%emt 0:00:03]} f5 {[%emt 0:00:04]} 13. Nc3 {[%emt 0:00:26]} f4 {[%emt 0:00:08]} 14. h3 {[%emt 0:00:41]} g5 {[%emt 0:00:50]} 15. g4 {[%emt 0:00:30]} b6 {[%emt 0:00:11]} 16. Nd5 {[%emt 0:00:53]} Nxd5 {[%emt 0:00:18]} 17. cxd5 {[%emt 0:00:20]} c4 {[%emt 0:00:28]} 18. dxc4 {[%emt 0:00:26]} Nxc4 {[%emt 0:00:20]} 19. Nd2 Na5 20. f3 {[%emt 0:01:09]} Bd7 {[%emt 0:00:30]} 21. Bf1 {[%emt 0:00:15]} Rc8 {[%emt 0:00:26]} 22. a4 {[%emt 0:00:36]} Qe7 {[%emt 0:01:58]} 23. Ba3 {[%emt 0:00:37]} Rc7 {[%emt 0:00:02]} 24. Rc1 {[%emt 0:00:22]} Rfc8 {[%emt 0:00:12]} 25. Rxc7 {[%emt 0:00:09]} Rxc7 {[%emt 0:00:01]} 26. Qb1 {[%emt 0:00:06]} Bf8 {[%emt 0:01:35]} 27. Rc1 {[%emt 0:00:13]} Qd8 {[%emt 0:00:07]} 28. Rc2 {[%emt 0:01:16]} Qc8 {[%emt 0:00:42]} 29. Rxc7 Qxc7 {[%emt 0:00:01]} 30. Qc1 {[%emt 0:00:36]} Qxc1 {[%emt 0:00:59]} 31. Bxc1 {[%emt 0:00:02]} Kf7 {[%emt 0:00:23]} 32. Ba3 {[%emt 0:00:14]} Ke8 {[%emt 0:00:24]} 33. Bb4 {[%emt 0:00:31]} Nb7 {[%emt 0:00:06]} 34. Nc4 {[%emt 0:00:21]} Be7 {[%emt 0:00:02]} 35. Kf2 {[%emt 0:00:11]} Bc8 {[%emt 0:00:09]} 36. Ke1 {[%emt 0:00:21]} Kd7 {[%emt 0:00:09]} 37. Kd2 {[%emt 0:00:02]} Bd8 {[%emt 0:00:26]} 38. Kc3 {[%emt 0:00:17]} Bc7 {[%emt 0:00:08]} 39. Kb3 {[%emt 0:00:07]} Nd8 {[%emt 0:00:59]} 40. Be2 {[%emt 0:01:06]} Nf7 {[%emt 0:00:19]} 41. a5 {[%emt 0:00:31]} bxa5 {[%emt 0:00:15]} 42. Bxa5 {[%emt 0:00:02]} Nd8 {[%emt 0:00:48]} 43. Bxc7 {[%emt 0:00:11]} Kxc7 {[%emt 0:00:02]} 44. Na5 {[%emt 0:00:03]} Kb6 {[%emt 0:01:13]} 45. Kb4 {[%emt 0:00:02]} Bd7 {[%emt 0:00:44]} 46. Nc4+ {[%emt 0:00:02]} Kc7 {[%emt 0:00:01]} 47. Na5 {[%emt 0:00:00]} Nf7 {[%emt 0:00:23]} 48. Nc4 {[%emt 0:01:01]} Nh8 {[%emt 0:00:13]} 49. Nd2 {[%emt 0:00:33]} Ng6 {[%emt 0:00:09]} 50. Ka5 {[%emt 0:00:01]} Bc8 {[%emt 0:00:06]} 51. Nc4 {[%emt 0:00:11]} Nh4 {[%emt 0:00:16]} 52. Na3 {[%emt 0:00:00]} Ng2 {[%emt 0:00:09]} 53. Nc2 {[%emt 0:00:01]} Ne3 {[%emt 0:00:11]} 54. Nxe3 {[%emt 0:00:02]} fxe3 {[%emt 0:00:02]} 55. Bd3 {[%emt 0:00:04]} Kb7 {[%emt 0:00:05]} 56. Be2 {[%emt 0:00:01]} Bd7 {[%emt 0:00:02]} 57. Bd3 {[%emt 0:00:02]} Be8 {[%emt 0:00:02]} 58. Be2 {[%emt 0:00:01]} h5 {[%emt 0:00:03]} 59. Bd1 {[%emt 0:00:03]} h4 {[%emt 0:00:47]} 60. Be2 {[%emt 0:00:01]} Bd7 {[%emt 0:00:01]} 61. Bd1 {[%emt 0:00:02]} Bc8 {[%emt 0:00:03]} 62. Be2 {[%emt 0:00:07]} 1/2-1/2

[Event "Cellavision Cup 2019"]
[Site "Lund"]
[Date "2019.08.02"]
[Round "3.10"]
[White "Bogo, Soren"]
[Black "Popilski, Gil"]
[Result "0-1"]
[ECO "E21"]
[WhiteElo "2250"]
[BlackElo "2467"]
[Annotator "ChessBase"]
[PlyCount "56"]
[EventDate "2019.08.02"]
[EventType "swiss"]
[EventCountry "SWE"]
[SourceTitle "playchess.com"]
[Source "ChessBase"]
[SourceQuality "1"]
[TimeControl "900+5"]

1. d4 {[%emt 0:00:01]} Nf6 {[%emt 0:00:00]} 2. c4 {[%emt 0:00:01]} e6 {[%emt 0:00:02]} 3. Nc3 {[%emt 0:00:02]} Bb4 {[%emt 0:00:01]} 4. Nf3 {[%emt 0:00:08]} d5 {[%emt 0:00:57]} 5. Bg5 {[%emt 0:03:18]} Nbd7 {[%emt 0:00:12]} 6. e3 {[%emt 0:00:04]} c5 {[%emt 0:00:02]} 7. cxd5 {[%emt 0:00:10]} exd5 {[%emt 0:00:03]} 8. Be2 {[%emt 0:03:01]} Qa5 {[%emt 0:00:41]} 9. O-O {[%emt 0:01:24]} Bxc3 {[%emt 0:00:46]} 10. bxc3 {[%emt 0:00:01]} Ne4 {[%emt 0:00:01]} 11. c4 {[%emt 0:00:39]} dxc4 {[%emt 0:02:14]} 12. Bxc4 {[%emt 0:00:52]} cxd4 {[%emt 0:00:18]} 13. exd4 {[%emt 0:01:38]} Nxg5 {[%emt 0:04:18]} 14. Qe1+ {[%emt 0:00:29]} Qxe1 {[%emt 0:00:04]} 15. Rfxe1+ {[%emt 0:00:04]} Ne6 {[%emt 0:00:03]} 16. d5 {[%emt 0:00:03]} Nb6 {[%emt 0:00:20]} 17. Bb3 {[%emt 0:01:28]} Nxd5 {[%emt 0:00:09]} 18. Bxd5 {[%emt 0:00:01]} O-O {[%emt 0:00:03]} 19. Rac1 {[%emt 0:00:36]} Rd8 {[%emt 0:00:08]} 20. Bb3 {[%emt 0:00:08]} Kf8 {[%emt 0:00:35]} 21. Ne5 {[%emt 0:00:42]} Rd6 {[%emt 0:01:52]} 22. f4 {[%emt 0:00:16]} g6 {[%emt 0:00:55]} 23. g3 {[%emt 0:00:41]} b5 {[%emt 0:00:39]} 24. Nc6 {[%emt 0:00:49]} Bd7 {[%emt 0:00:22]} 25. Na5 {[%emt 0:00:11]} Rc8 {[%emt 0:00:36]} 26. Rxc8+ {[%emt 0:00:09]} Bxc8 27. Re5 {[%emt 0:00:07]} a6 {[%emt 0:00:31]} 28. f5 {[%emt 0:00:02]} Nd4 {[%emt 0:00:03]} 0-1

[Event "Cellavision Cup 2019"]
[Site "Lund"]
[Date "2019.08.02"]
[Round "3.11"]
[White "Smith, Axel"]
[Black "Holst, Conny"]
[Result "1/2-1/2"]
[ECO "A30"]
[WhiteElo "2469"]
[BlackElo "2184"]
[Annotator "ChessBase"]
[PlyCount "125"]
[EventDate "2019.08.02"]
[EventType "swiss"]
[EventCountry "SWE"]
[SourceTitle "playchess.com"]
[Source "ChessBase"]
[SourceQuality "1"]
[TimeControl "900+5"]

1. Nf3 {[%emt 0:00:00]} Nf6 {[%emt 0:00:00]} 2. c4 {[%emt 0:00:00]} e6 {[%emt 0:00:00]} 3. g3 {[%emt 0:00:01]} b6 {[%emt 0:00:04]} 4. Bg2 {[%emt 0:00:03]} Bb7 {[%emt 0:00:01]} 5. O-O {[%emt 0:00:04]} c5 {[%emt 0:00:34]} 6. Nc3 {[%emt 0:00:02]} Be7 {[%emt 0:00:10]} 7. d4 {[%emt 0:00:04]} cxd4 {[%emt 0:00:03]} 8. Qxd4 {[%emt 0:00:01]} O-O {[%emt 0:00:57]} 9. Rd1 {[%emt 0:00:25]} d6 {[%emt 0:01:22]} 10. b3 {[%emt 0:01:24]} Nbd7 {[%emt 0:00:07]} 11. Bb2 {[%emt 0:02:28]} a6 {[%emt 0:00:48]} 12. Ng5 {[%emt 0:00:28]} Bxg2 {[%emt 0:00:08]} 13. Kxg2 {[%emt 0:00:01]} Qc8 {[%emt 0:00:28]} 14. f3 {[%emt 0:02:08]} Qb7 {[%emt 0:00:21]} 15. Nge4 {[%emt 0:00:27]} Ne8 {[%emt 0:02:49]} 16. Rac1 {[%emt 0:00:50]} Rc8 {[%emt 0:00:21]} 17. Rd2 {[%emt 0:02:39]} h6 {[%emt 0:00:38]} 18. Rcd1 {[%emt 0:00:25]} Ne5 {[%emt 0:00:46]} 19. Na4 {[%emt 0:01:11]} b5 {[%emt 0:01:01]} 20. cxb5 {[%emt 0:00:03]} axb5 {[%emt 0:00:03]} 21. Qb6 {[%emt 0:00:02]} Rc7 {[%emt 0:00:30]} 22. Qxb7 {[%emt 0:00:30]} Rxb7 {[%emt 0:00:01]} 23. Bxe5 {[%emt 0:00:10]} bxa4 {[%emt 0:00:12]} 24. Nxd6 {[%emt 0:00:17]} Nxd6 {[%emt 0:00:04]} 25. Bxd6 {[%emt 0:00:04]} Bxd6 {[%emt 0:00:01]} 26. Rxd6 {[%emt 0:00:01]} axb3 {[%emt 0:00:02]} 27. axb3 {[%emt 0:00:06]} Rxb3 {[%emt 0:00:02]} 28. R1d2 {[%emt 0:00:15]} Rfb8 {[%emt 0:00:17]} 29. h4 {[%emt 0:00:15]} h5 {[%emt 0:00:25]} 30. Rd8+ {[%emt 0:01:08]} Rxd8 {[%emt 0:00:04]} 31. Rxd8+ {[%emt 0:00:01]} Kh7 {[%emt 0:00:01]} 32. Rd7 {[%emt 0:00:02]} Kg6 {[%emt 0:00:03]} 33. Rc7 {[%emt 0:00:06]} e5 {[%emt 0:01:11]} 34. Kf2 {[%emt 0:00:26]} f6 {[%emt 0:00:04]} 35. Ra7 {[%emt 0:00:05]} Rc3 {[%emt 0:00:02]} 36. Ra4 {[%emt 0:00:23]} Rb3 {[%emt 0:00:30]} 37. Ra7 {[%emt 0:00:02]} Rc3 {[%emt 0:00:02]} 38. Rd7 {[%emt 0:00:01]} Rb3 {[%emt 0:00:03]} 39. Rd3 {[%emt 0:00:04]} Rb1 {[%emt 0:00:30]} 40. Ke3 {[%emt 0:00:08]} Rg1 {[%emt 0:00:10]} 41. Kf2 {[%emt 0:00:01]} Rb1 {[%emt 0:00:01]} 42. Ra3 {[%emt 0:00:16]} Rc1 {[%emt 0:00:10]} 43. Rb3 {[%emt 0:00:53]} Ra1 {[%emt 0:00:05]} 44. Rc3 {[%emt 0:00:24]} Rb1 {[%emt 0:00:05]} 45. Rc5 {[%emt 0:00:03]} Rb3 {[%emt 0:00:05]} 46. Kg2 {[%emt 0:00:03]} Rb2 {[%emt 0:00:04]} 47. Kf1 {[%emt 0:00:02]} Rb1+ {[%emt 0:00:03]} 48. Kf2 {[%emt 0:00:01]} Rb3 {[%emt 0:00:02]} 49. Rd5 {[%emt 0:00:02]} Rc3 {[%emt 0:00:04]} 50. Rd3 {[%emt 0:00:01]} Rc1 {[%emt 0:00:02]} 51. Ra3 {[%emt 0:00:13]} Rb1 {[%emt 0:00:02]} 52. Rd3 {[%emt 0:00:18]} Rc1 {[%emt 0:00:02]} 53. Rb3 {[%emt 0:00:01]} Ra1 {[%emt 0:00:02]} 54. Rc3 {[%emt 0:00:09]} Rd1 {[%emt 0:00:03]} 55. Rd3 {[%emt 0:00:03]} Rc1 {[%emt 0:00:02]} 56. Rd5 {[%emt 0:00:04]} Rc3 {[%emt 0:00:04]} 57. Ra5 {[%emt 0:00:07]} Rb3 {[%emt 0:00:04]} 58. Rd5 {[%emt 0:00:05]} Rc3 {[%emt 0:00:02]} 59. Rd3 {[%emt 0:00:05]} Rc1 {[%emt 0:00:02]} 60. Kg2 {[%emt 0:00:05]} Rc2 {[%emt 0:00:03]} 61. Kf2 {[%emt 0:00:03]} Rc1 {[%emt 0:00:02]} 62. Kg2 {[%emt 0:00:01]} Rc2 {[%emt 0:00:01]} 63. Kf2 1/2-1/2

[Event "Cellavision Cup 2019"]
[Site "Lund"]
[Date "2019.08.02"]
[Round "3.12"]
[White "Namini, Armin"]
[Black "Hansen, Torbjorn Ringdal"]
[Result "1/2-1/2"]
[ECO "A33"]
[WhiteElo "2241"]
[BlackElo "2432"]
[Annotator "NA"]
[PlyCount "104"]
[EventDate "2019.08.02"]
[EventType "swiss"]
[EventCountry "SWE"]
[SourceTitle "playchess.com"]
[Source "ChessBase"]
[SourceQuality "1"]
[TimeControl "900+5"]

1. c4 {[%emt 0:00:00]} c5 {[%emt 0:00:01]} 2. Nf3 {[%emt 0:00:04]} Nc6 {[%emt 0:00:11]} 3. d4 {[%emt 0:00:02]} cxd4 {[%emt 0:00:21]} 4. Nxd4 {[%emt 0:00:02]} Nf6 {[%emt 0:00:16]} 5. Nc3 {[%emt 0:00:03]} e6 {[%emt 0:00:47]} 6. a3 {[%emt 0:00:04]} d5 {[%emt 0:00:18]} 7. cxd5 {[%emt 0:00:50] A33: Symmetrical English: 2 Nf3 Nf6 3 d4 cxd4 4 Nxd4 e6 5 Nc3 Nc6} exd5 {[%emt 0:00:11]} 8. g3 {[%emt 0:00:39]} (8. Bg5 Bc5 9. e3 Bxd4 10. exd4 O-O 11. Be2 h6 12. Bh4 Qd6 13. Bg3 Qe7 14. O-O Bf5 15. Re1 Qd7 16. Bf3 {½-½ (33) Navara,D (2737)-Anand,V (2783) Saint Louis 2017}) 8... Bc5 {[%emt 0:00:28]} 9. Nb3 {[%emt 0:01:00] The position is equal.} Bb6 {[%emt 0:00:25]} 10. Bg2 {[%emt 0:00:13]} d4 {[%emt 0:00:57]} 11. Na4 {[%emt 0:00:24]} O-O {[%emt 0:00:13]} 12. O-O {[%emt 0:00:15]} Re8 $146 {[%emt 0:00:28]} ({Predecessor:} 12... Bg4 13. h3 Bh5 14. g4 Bg6 {½-½ (49) Mareco,S (2580)-Krysa,L (2378) Villa Martelli 2013}) 13. Bg5 {[%emt 0:01:36]} h6 {[%emt 0:00:33]} 14. Nxb6 {[%emt 0:01:18]} axb6 {[%emt 0:00:02]} 15. Bf4 {[%emt 0:00:17]} ({White should play} 15. Bxf6 $11 Qxf6 16. Re1) 15... Be6 {[%emt 0:02:25]} 16. Re1 {[%emt 0:01:49]} Bd5 {[%emt 0:00:22]} 17. Qd3 {[%emt 0:01:41]} Bxg2 {[%emt 0:00:35]} 18. Kxg2 {[%emt 0:00:02]} Qd7 {[%emt 0:01:36]} 19. Rad1 {[%emt 0:00:31]} Rad8 {[%emt 0:00:02]} 20. Qf3 {[%emt 0:01:58]} Qe6 {[%emt 0:01:12]} 21. Nc1 {[%emt 0:01:19]} g5 {[%emt 0:00:46]} 22. Bd2 {[%emt 0:00:17]} Rd5 {[%emt 0:01:05]} 23. Qb3 {[%emt 0:01:18]} Ne4 {[%emt 0:00:37]} 24. Nd3 {[%emt 0:00:17]} Nc5 {[%emt 0:00:57]} 25. Nxc5 {[%emt 0:00:03]} bxc5 {[%emt 0:00:01]} 26. Qxb7 {[%emt 0:00:36]} Rb8 {[%emt 0:00:07]} 27. Qa6 {[%emt 0:00:03]} Rxb2 {[%emt 0:00:09]} 28. Qc4 {[%emt 0:00:08]} Ne5 {[%emt 0:00:09]} 29. Qc1 {[%emt 0:00:07]} Rb3 {[%emt 0:00:06]} 30. h3 {[%emt 0:00:17]} c4 {[%emt 0:00:31]} 31. Bb4 {[%emt 0:00:03]} c3 {[%emt 0:00:12]} 32. Kh2 {[%emt 0:00:13]} Rb2 {[%emt 0:00:05]} 33. Rxd4 {[%emt 0:00:09]} Rxd4 {[%emt 0:00:22]} 34. Bxc3 {[%emt 0:00:00]} Nf3+ {[%emt 0:00:45]} 35. exf3 {[%emt 0:00:04]} Rxf2+ {[%emt 0:00:02]} 36. Kg1 {[%emt 0:00:02]} Qxh3 {[%emt 0:00:01]} 37. Kxf2 {[%emt 0:00:05]} Qh2+ {[%emt 0:00:10]} 38. Ke3 {[%emt 0:00:01]} Rd8 {[%emt 0:00:07]} 39. Be5 {[%emt 0:00:17]} Re8 {[%emt 0:00:08]} 40. Kd4 {[%emt 0:00:02]} Qf2+ {[%emt 0:00:10]} 41. Qe3 {[%emt 0:00:03]} Qb2+ {[%emt 0:00:02]} 42. Qc3 {[%emt 0:00:03]} Rd8+ {[%emt 0:00:06]} 43. Ke4 {[%emt 0:00:08]} Qb5 {[%emt 0:00:13]} 44. f4 {[%emt 0:00:09]} g4 {[%emt 0:00:16]} 45. Kf5 {[%emt 0:00:07]} Qd7+ {[%emt 0:00:03]} 46. Ke4 {[%emt 0:00:01]} Qb7+ {[%emt 0:00:01]} 47. Kf5 {[%emt 0:00:05]} Qd7+ {[%emt 0:00:04]} 48. Ke4 {[%emt 0:00:02]} Qd5+ {[%emt 0:00:01]} 49. Kf5 {[%emt 0:00:03]} Qe6+ {[%emt 0:00:09]} 50. Ke4 {[%emt 0:00:01]} Qd5+ {[%emt 0:00:10]} 51. Kf5 {[%emt 0:00:01]} Qe6+ {[%emt 0:00:11]} 52. Ke4 {[%emt 0:00:01]} Qd5+ 1/2-1/2

[Event "Cellavision Cup 2019"]
[Site "Lund"]
[Date "2019.08.02"]
[Round "3.13"]
[White "Lindahl, Emil"]
[Black "Seo, Jung Min"]
[Result "0-1"]
[ECO "A45"]
[WhiteElo "2180"]
[BlackElo "2399"]
[Annotator "NA"]
[PlyCount "64"]
[EventDate "2019.08.02"]
[EventType "swiss"]
[EventCountry "SWE"]
[SourceTitle "playchess.com"]
[Source "ChessBase"]
[SourceQuality "1"]
[TimeControl "900+5"]

1. d4 {[%emt 0:00:00]} Nf6 {[%emt 0:00:00]} 2. Bg5 {[%emt 0:00:00]} d5 {[%emt 0:00:03]} 3. Nd2 {[%emt 0:00:00]} Nbd7 {[%emt 0:00:08]} 4. Ngf3 {[%emt 0:00:05]} c6 {[%emt 0:00:18]} 5. e3 {[%emt 0:00:09]} e6 {[%emt 0:00:01]} 6. Bd3 {[%emt 0:00:06]} Be7 {[%emt 0:00:02]} 7. O-O {[%emt 0:00:03]} O-O {[%emt 0:00:13]} 8. c4 {[%emt 0:00:23]} b6 {[%emt 0:00:19]} 9. Rc1 {[%emt 0:00:33] D30: Queen's Gambit Declined: Systems without Nc3} (9. Qc2 Bb7 10. Rfd1 h6 11. Bh4 c5 12. Bf1 Rc8 13. dxc5 Nxc5 14. Rac1 Nfe4 15. Bxe7 Qxe7 16. cxd5 exd5 {1-0 (44) Bu,X (2714)-Korobov,A (2605) Beijing 2008}) 9... Bb7 {[%emt 0:00:02]} 10. cxd5 {[%emt 0:00:44]} cxd5 {[%emt 0:00:04]} 11. Qe2 {[%emt 0:00:32] White is slightly better.} a6 {[%emt 0:00:51]} 12. Rc2 {[%emt 0:00:41]} Bd6 $146 {[%emt 0:01:07]} ({Predecessor:} 12... Rc8 13. Rfc1 Rxc2 14. Rxc2 Qa8 15. Ne5 {0-1 (74) Maderna,C-Eliskases,E Mar del Plata 1947}) 13. e4 {[%emt 0:00:21]} dxe4 {[%emt 0:00:10] The position is equal.} 14. Nxe4 {[%emt 0:00:02]} Be7 {[%emt 0:00:01]} 15. Ne5 {[%emt 0:00:48]} Nd5 {[%emt 0:02:18]} 16. Nd6 {[%emt 0:06:09]} Bxg5 {[%emt 0:00:09]} 17. Nxb7 {[%emt 0:00:20]} Qe7 {[%emt 0:00:37]} 18. Nc6 {[%emt 0:00:36]} Qf6 {[%emt 0:00:19]} 19. Bxa6 {[%emt 0:00:18]} Nb8 {[%emt 0:02:46]} 20. Bb5 {[%emt 0:01:16]} Rxa2 {[%emt 0:02:20]} 21. Ne5 {[%emt 0:00:15]} Qe7 22. Bc4 {[%emt 0:03:06]} Ra7 {[%emt 0:00:18]} 23. Qg4 {[%emt 0:00:21]} Rxb7 {[%emt 0:00:13]} 24. h4 {[%emt 0:00:04]} Bxh4 {[%emt 0:00:38]} 25. Re2 {[%emt 0:00:01]} Rd8 {[%emt 0:00:22]} 26. Rfe1 {[%emt 0:00:01]} Bf6 {[%emt 0:00:07]} 27. Qh5 {[%emt 0:00:06]} Nf4 {[%emt 0:00:11]} 28. Qh2 {[%emt 0:00:05]} Nxe2+ {[%emt 0:00:01]} 29. Bxe2 {[%emt 0:00:09]} Rxd4 {[%emt 0:00:08]} 30. Bh5 {[%emt 0:00:06]} g6 {[%emt 0:00:11]} 31. Bxg6 {[%emt 0:00:03]} fxg6 {[%emt 0:00:05]} 32. Nf3 {[%emt 0:00:06]} Rd8 {[%emt 0:00:03]} 0-1

[Event "Cellavision Cup 2019"]
[Site "Lund"]
[Date "2019.08.02"]
[Round "3.14"]
[White "Kristiansen, Jens"]
[Black "Olsson, Simon"]
[Result "1-0"]
[ECO "A08"]
[WhiteElo "2400"]
[BlackElo "2176"]
[Annotator "NA"]
[PlyCount "103"]
[EventDate "2019.08.02"]
[EventType "swiss"]
[EventCountry "SWE"]
[SourceTitle "playchess.com"]
[Source "ChessBase"]
[SourceQuality "1"]
[TimeControl "900+5"]

1. Nf3 {[%emt 0:00:00]} d5 {[%emt 0:00:00]} 2. g3 {[%emt 0:00:01]} c5 {[%emt 0:00:09]} 3. Bg2 {[%emt 0:00:04]} Nc6 {[%emt 0:00:01]} 4. O-O {[%emt 0:00:05]} e5 {[%emt 0:01:17]} 5. d3 {[%emt 0:00:03]} Nf6 {[%emt 0:00:19]} 6. e4 {[%emt 0:00:05]} dxe4 {[%emt 0:01:01]} 7. dxe4 {[%emt 0:00:03]} Qxd1 {[%emt 0:00:16]} 8. Rxd1 {[%emt 0:00:01]} Bg4 {[%emt 0:00:13]} 9. Nbd2 {[%emt 0:01:36] A08: King's Indian Attack} (9. Na3 Nd4 10. Rd3 Bd6 11. Nc4 Bc7 12. Ncxe5 Ne2+ 13. Kf1 Nxc1 14. Rxc1 Be6 15. b3 O-O 16. Re3 Rfd8 17. Nd3 c4 {1-0 (36) Kramnik,V (2779)-Dragnev,V (2508) Douglas 2018}) 9... Rd8 {[%emt 0:00:47]} 10. Rf1 $1 {[%emt 0:00:42]} Bd6 $146 {[%emt 0:02:17]} ({Predecessor:} 10... Be7 11. Nc4 Nd7 12. Re1 O-O 13. Ne3 Be6 14. c3 Nb6 15. Nf5 Bxf5 16. exf5 {1-0 (37) Andreasen,J (1979)-Justinussen,S (1925) Torshavn 2013}) 11. c3 {[%emt 0:00:14] The position is equal.} O-O {[%emt 0:00:03]} 12. h3 {[%emt 0:00:11]} Bc8 {[%emt 0:00:36]} 13. Nh4 {[%emt 0:00:30]} b5 {[%emt 0:00:27]} 14. Nf5 {[%emt 0:00:18]} Bb7 {[%emt 0:00:47]} (14... Bc7 $11 {keeps the balance.}) 15. Re1 {[%emt 0:00:45]} Bc7 {[%emt 0:00:35]} 16. a4 {[%emt 0:01:06]} a6 {[%emt 0:00:19]} 17. Nb3 {[%emt 0:00:21]} Nd7 {[%emt 0:00:52]} 18. Be3 {[%emt 0:00:29]} g6 {[%emt 0:01:23]} 19. Nh6+ {[%emt 0:00:13]} Kg7 {[%emt 0:00:01]} 20. Ng4 {[%emt 0:00:33]} c4 {[%emt 0:00:12]} 21. Bh6+ {[%emt 0:00:26]} Kg8 {[%emt 0:00:08]} 22. Bxf8 {[%emt 0:00:16]} Kxf8 {[%emt 0:00:14]} 23. axb5 {[%emt 0:00:09]} axb5 {[%emt 0:00:06]} 24. Nc1 {[%emt 0:00:31]} Nc5 {[%emt 0:00:38]} 25. Ne3 {[%emt 0:00:27]} Rd2 {[%emt 0:00:22]} 26. Re2 {[%emt 0:00:13]} Nb3 {[%emt 0:00:53]} 27. Rxd2 {[%emt 0:00:10]} Nxd2 {[%emt 0:00:04]} 28. Nd5 {[%emt 0:00:18]} Bd8 {[%emt 0:00:01]} 29. Na2 {[%emt 0:00:40]} Nb3 {[%emt 0:00:53]} 30. Rd1 {[%emt 0:00:06]} Ke8 {[%emt 0:00:03]} 31. Nab4 {[%emt 0:00:22]} Nxb4 {[%emt 0:00:05]} 32. Nxb4 {[%emt 0:00:05]} Nc5 {[%emt 0:00:19]} 33. Nd5 {[%emt 0:00:25]} Nd3 {[%emt 0:00:30]} 34. b3 {[%emt 0:00:39]} Bxd5 {[%emt 0:00:29]} 35. exd5 {[%emt 0:00:02]} Kd7 {[%emt 0:00:00]} 36. bxc4 {[%emt 0:00:28]} bxc4 {[%emt 0:00:01]} 37. Rb1 {[%emt 0:00:15]} Bc7 {[%emt 0:00:11]} 38. Bf1 {[%emt 0:01:07]} e4 {[%emt 0:00:02]} 39. Bxd3 {[%emt 0:00:20]} exd3 {[%emt 0:00:27]} 40. Kf1 {[%emt 0:00:27]} Be5 {[%emt 0:00:04]} 41. Rb4 {[%emt 0:00:09]} Bxc3 {[%emt 0:00:43]} 42. Rxc4 {[%emt 0:00:03]} d2 {[%emt 0:00:04]} 43. Ke2 {[%emt 0:00:01]} Ba5 {[%emt 0:00:00]} 44. Ra4 {[%emt 0:00:05]} Bc3 {[%emt 0:00:04]} 45. Ra3 {[%emt 0:00:23]} Bb4 {[%emt 0:00:02]} 46. Rb3 {[%emt 0:00:01]} Ba5 {[%emt 0:00:01]} 47. Rb7+ {[%emt 0:00:02]} Ke8 {[%emt 0:00:15]} 48. g4 {[%emt 0:00:23]} Bc3 {[%emt 0:00:08]} 49. d6 {[%emt 0:00:16]} Ba5 {[%emt 0:00:16]} 50. Re7+ {[%emt 0:00:06]} Kf8 {[%emt 0:00:02]} 51. Ra7 {[%emt 0:00:09]} Bb4 {[%emt 0:00:01]} 52. Ra8+ 1-0